﻿Department family,Entity,Date,Expense type,Expense area,Supplier,Transaction number,Amount,VAT registration number
Dept of Health,MHRA,02/09/2020,Security,Operations,CIS Security Limited,39364,"51,530.63",206193092
Dept of Health,MHRA,02/09/2020,Electricity,Operations,EDF Energy,8147682,"172,919.04",523041202
Dept of Health,MHRA,02/09/2020,Electricity,Operations,EDF Energy,8151113,"-54,487.95",523041202
Dept of Health,MHRA,02/09/2020,Divisional Training (inc. T&S),Transformation,NTT Data UK Ltd,4016844,"138,962.40",159334590
Dept of Health,MHRA,02/09/2020,Divisional Training (inc. T&S),Transformation,NTT Data UK Ltd,4016845,"119,990.40",159334590
Dept of Health,MHRA,07/09/2020,Application Services and Maintenance,Transformation,Accenture (UK) Limited,3003481073,"350,734.07",788629066
Dept of Health,MHRA,07/09/2020,Application Services and Maintenance,Transformation,Accenture (UK) Limited,3003481072,"26,500.01",788629066
Dept of Health,MHRA,07/09/2020,Management Consultancy,Directorate,Ernst & Young LLP,GB01G000112765,"43,754.40",773831408
Dept of Health,MHRA,07/09/2020,Software & Licences,Transformation,Oracle Corporation UK Limited,1774951,"99,240.97",391313073
Dept of Health,MHRA,07/09/2020,Assets Under Construction - Plant & Equipment,Operations,Scientific Laboratory Supplies Limited,SI174551501,"48,096.00",572692021
Dept of Health,MHRA,09/09/2020,Contracted Out Services Miscellaneous,Communications,NLA Media Access,Q449237,"31,401.10",661865215
Dept of Health,MHRA,09/09/2020,Contracted Out Services Miscellaneous,Vigilance and Risk Management of Medicines,Red Ant Digital Ltd,INV-08420,"91,200.00",123388322
Dept of Health,MHRA,09/09/2020,Contracted Out Services Miscellaneous,Vigilance and Risk Management of Medicines,Red Ant Digital Ltd,INV-08429,"45,300.00",123388322
Dept of Health,MHRA,09/09/2020,Software Development,Transformation,Red Badger Consulting Limited,1246,"115,950.00",990808582
Dept of Health,MHRA,14/09/2020,Application Services and Maintenance,Transformation,Accenture (UK) Limited,3003481627,"116,521.07",788629066
Dept of Health,MHRA,14/09/2020,Gas,Operations,Corona Energy Retail 4 Ltd,15429432,"25,315.66",577704800
Dept of Health,MHRA,14/09/2020,Gas,Operations,Corona Energy Retail 4 Ltd,15502191,"25,221.47",577704800
Dept of Health,MHRA,14/09/2020,External Audit,Finance & Procurement,National Audit Office,SIN002249,"52,500.00",417632457
Dept of Health,MHRA,14/09/2020,Assets Under Construction - Clearing Account,Transformation,XMA Limited,KX14860,"49,445.76",115091937
Dept of Health,MHRA,16/09/2020,Help desk and end user support,Transformation,Insight Networking Solutions,4947473,"65,202.02",746075129
Dept of Health,MHRA,16/09/2020,Help desk and end user support,Transformation,Insight Networking Solutions,4961955,"65,202.01",746075129
Dept of Health,MHRA,16/09/2020,Infrastructure Services and Maintenance,Transformation,XMA Limited,KX14186,"86,657.20",115091937
Dept of Health,MHRA,21/09/2020,"Service, Integration & Management - Portfolio Services",Transformation,The DMW Group Limited,INV005928,"96,000.00",532495148
Dept of Health,MHRA,21/09/2020,Assets Under Construction - Clearing Account,Transformation,XMA Limited,KX16314,"31,821.05",115091937
Dept of Health,MHRA,23/09/2020,Software & Licences,Transformation,Clearvision (CM) 2005 Ltd,cvuk14907,"25,957.24",881364801
Dept of Health,MHRA,23/09/2020,"Service, Integration & Management - Enterprise Architecture",Transformation,Ernst & Young LLP,GB01G000111905,"130,255.20",773831408
Dept of Health,MHRA,23/09/2020,"Service, Integration & Management - Design Services",Transformation,Redrock Consulting Ltd,9472,"32,210.78",862247715
Dept of Health,MHRA,25/09/2020,Electricity,Operations,EDF Energy,8307759,"96,342.11",523041202
Dept of Health,MHRA,25/09/2020,Infrastructure Services and Maintenance,Transformation,Sungard Availability Services (UK) Limited,20004406,"53,999.99",823829709
Dept of Health,MHRA,30/09/2020,Infrastructure Services and Maintenance,Transformation,NTT Data UK Ltd,4017051,"185,896.90",159334590
Dept of Health,MHRA,30/09/2020,Divisional Training (inc. T&S),Transformation,NTT Data UK Ltd,4017052,"50,181.90",159334590
Dept of Health,MHRA,30/09/2020,Software & Licences,Transformation,Seattle Software Limited,UK20-00368,"97,332.00",853413534
